[Event "Early-Titled-Tuesday-Blitz-October-03-2023"]
[Site "Chess.com"]
[Date "2023.10.03"]
[Round "8"]
[White "MathiasWomacka"]
[Black "Fradi82"]
[Result "1-0"]
[WhiteElo "2549"]
[BlackElo "2330"]
[TimeControl "180+1"]
[EndTime "9:29:11 PDT"]
[Termination "MathiasWomacka won by resignation"]

1. e4 {[%clk 0:03:00.9]} 1... Nf6 {[%clk 0:02:56.2]} 2. e5 {[%clk 0:03:00.4]}
2... Nd5 {[%clk 0:02:55]} 3. d4 {[%clk 0:03:01]} 3... d6 {[%clk 0:02:54.4]} 4.
Nf3 {[%clk 0:03:01.4]} 4... Nb6 {[%clk 0:02:54]} 5. a4 {[%clk 0:02:56.9]} 5...
a5 {[%clk 0:02:54]} 6. exd6 {[%clk 0:02:56.4]} 6... exd6 {[%clk 0:02:49.5]} 7.
h3 {[%clk 0:02:42.2]} 7... Be7 {[%clk 0:02:46.6]} 8. Bd3 {[%clk 0:02:41.8]} 8...
O-O {[%clk 0:02:46.5]} 9. O-O {[%clk 0:02:41.5]} 9... c6 {[%clk 0:02:44.9]} 10.
Bf4 {[%clk 0:02:37]} 10... d5 {[%clk 0:02:43.8]} 11. Nc3 {[%clk 0:02:29.9]}
11... Bd6 {[%clk 0:02:41.6]} 12. Ne2 {[%clk 0:02:05.2]} 12... Bxf4 {[%clk
0:02:34.3]} 13. Nxf4 {[%clk 0:02:06.1]} 13... Qd6 {[%clk 0:02:33.9]} 14. Qd2
{[%clk 0:02:05.9]} 14... N8d7 {[%clk 0:02:28.2]} 15. Rfe1 {[%clk 0:01:59.6]}
15... Nf6 {[%clk 0:02:24.6]} 16. Ne5 {[%clk 0:01:59.3]} 16... Nbd7 {[%clk
0:02:12.1]} 17. Re3 {[%clk 0:01:54.2]} 17... b6 {[%clk 0:02:09.1]} 18. c3 {[%clk
0:01:48.8]} 18... Ba6 {[%clk 0:02:08]} 19. Bc2 {[%clk 0:01:46.9]} 19... Rae8
{[%clk 0:02:02]} 20. Rae1 {[%clk 0:01:45.3]} 20... h6 {[%clk 0:01:55]} 21. Bb1
{[%clk 0:01:29.9]} 21... b5 {[%clk 0:01:34]} 22. Qc2 {[%clk 0:01:24.4]} 22... b4
{[%clk 0:01:27.6]} 23. Nxd7 {[%clk 0:01:16.1]} 23... Qxd7 {[%clk 0:01:25.7]} 24.
Nh5 {[%clk 0:01:14.3]} 24... Ne4 {[%clk 0:01:08.7]} 25. f3 {[%clk 0:01:14.3]}
25... b3 {[%clk 0:00:56.3]} 26. Qxb3 {[%clk 0:01:02.5]} 26... Nd2 {[%clk
0:00:52.8]} 27. Qc2 {[%clk 0:01:02.5]} 27... Nxb1 {[%clk 0:00:52.8]} 28. Qxb1
{[%clk 0:00:55.1]} 28... Rxe3 {[%clk 0:00:51]} 29. Rxe3 {[%clk 0:00:54.7]} 29...
Re8 {[%clk 0:00:51.7]} 30. Qe1 {[%clk 0:00:52.6]} 30... Rxe3 {[%clk 0:00:51]}
31. Qxe3 {[%clk 0:00:53.5]} 31... Qf5 {[%clk 0:00:49.7]} 32. Qe5 {[%clk
0:00:45.3]} 32... Qxe5 {[%clk 0:00:26.3]} 33. dxe5 {[%clk 0:00:46.2]} 33... Kf8
{[%clk 0:00:22.5]} 34. Kf2 {[%clk 0:00:43.3]} 34... Ke7 {[%clk 0:00:20.3]} 35.
Nxg7 {[%clk 0:00:42.5]} 35... Bc4 {[%clk 0:00:19.6]} 36. Nf5+ {[%clk 0:00:39.5]}
36... Ke6 {[%clk 0:00:19.8]} 37. Nxh6 {[%clk 0:00:39.3]} 37... Kxe5 {[%clk
0:00:20.5]} 38. Nxf7+ {[%clk 0:00:38.4]} 38... Ke6 {[%clk 0:00:20.7]} 39. Nd8+
{[%clk 0:00:34.7]} 39... Kd7 {[%clk 0:00:20.7]} 40. Nb7 {[%clk 0:00:34.6]} 40...
Bb3 {[%clk 0:00:20.5]} 41. Nc5+ {[%clk 0:00:34.3]} 41... Kd6 {[%clk 0:00:20.2]}
42. Nxb3 {[%clk 0:00:35.2]} 42... c5 {[%clk 0:00:20.7]} 43. Ke3 {[%clk
0:00:34.5]} 1-0

[Event "Early-Titled-Tuesday-Blitz-October-03-2023"]
[Site "Chess.com"]
[Date "2023.10.03"]
[Round "8"]
[White "carloseduar100"]
[Black "lefonghua"]
[Result "1/2-1/2"]
[WhiteElo "2351"]
[BlackElo "2591"]
[TimeControl "180+1"]
[EndTime "9:29:12 PDT"]
[Termination "Game drawn by stalemate"]

1. d4 {[%clk 0:03:00]} 1... Nf6 {[%clk 0:03:00]} 2. Bg5 {[%clk 0:02:59.9]} 2...
g6 {[%clk 0:03:00.1]} 3. Bxf6 {[%clk 0:02:59.7]} 3... exf6 {[%clk 0:03:01]} 4.
g3 {[%clk 0:03:00.6]} 4... Bg7 {[%clk 0:03:01.6]} 5. Bg2 {[%clk 0:03:01.5]} 5...
O-O {[%clk 0:03:02.2]} 6. e3 {[%clk 0:03:02.3]} 6... d6 {[%clk 0:03:02.8]} 7.
Ne2 {[%clk 0:03:02.7]} 7... c6 {[%clk 0:03:03.4]} 8. O-O {[%clk 0:03:03.6]} 8...
f5 {[%clk 0:03:04.2]} 9. c4 {[%clk 0:03:03.9]} 9... Nd7 {[%clk 0:03:05]} 10.
Nbc3 {[%clk 0:03:04.6]} 10... Nf6 {[%clk 0:03:05.7]} 11. b4 {[%clk 0:03:05.1]}
11... h5 {[%clk 0:03:05.4]} 12. a4 {[%clk 0:03:05.4]} 12... h4 {[%clk
0:03:05.6]} 13. a5 {[%clk 0:03:05.8]} 13... a6 {[%clk 0:03:04.9]} 14. b5 {[%clk
0:03:05.8]} 14... axb5 {[%clk 0:02:56.8]} 15. cxb5 {[%clk 0:03:05.8]} 15... Rxa5
{[%clk 0:02:54.7]} 16. Rxa5 {[%clk 0:03:06]} 16... Qxa5 {[%clk 0:02:55.6]} 17.
bxc6 {[%clk 0:03:06.3]} 17... bxc6 {[%clk 0:02:56.2]} 18. Bxc6 {[%clk
0:03:06.8]} 18... hxg3 {[%clk 0:02:48.9]} 19. hxg3 {[%clk 0:03:07.7]} 19... Bd7
{[%clk 0:02:44.7]} 20. Qa4 {[%clk 0:03:01.3]} 20... Qxa4 {[%clk 0:02:42.1]} 21.
Bxa4 {[%clk 0:03:02.2]} 21... Bxa4 {[%clk 0:02:40.4]} 22. Nxa4 {[%clk
0:03:03.1]} 22... Ra8 {[%clk 0:02:33.9]} 23. Nb6 {[%clk 0:03:03.4]} 23... Ra2
{[%clk 0:02:30.7]} 24. Nf4 {[%clk 0:03:03.3]} 24... Ne4 {[%clk 0:02:27.6]} 25.
Nc4 {[%clk 0:02:56.2]} 25... Bh6 {[%clk 0:02:17.1]} 26. Nd5 {[%clk 0:02:48.7]}
26... Kg7 {[%clk 0:02:12.7]} 27. f3 {[%clk 0:02:49.1]} 27... Nxg3 {[%clk
0:02:09.4]} 28. Rb1 {[%clk 0:02:47.2]} 28... Re2 {[%clk 0:01:44.9]} 29. Rb7
{[%clk 0:02:44.6]} 29... Kg8 {[%clk 0:01:36.7]} 30. Nf6+ {[%clk 0:02:37.6]}
30... Kg7 {[%clk 0:01:37.2]} 31. Nd5 {[%clk 0:02:38.3]} 31... f4 {[%clk
0:01:03.5]} 32. exf4 {[%clk 0:02:34.6]} 32... Re6 {[%clk 0:01:01.3]} 33. Kf2
{[%clk 0:02:17.8]} 33... Nh5 {[%clk 0:00:57]} 34. Nc7 {[%clk 0:02:10.4]} 34...
Re7 {[%clk 0:00:45.9]} 35. Nxd6 {[%clk 0:02:10.7]} 35... Kh7 {[%clk 0:00:38.4]}
36. Nd5 {[%clk 0:02:00.1]} 36... Rxb7 {[%clk 0:00:36]} 37. Nxb7 {[%clk 0:02:01]}
37... Nxf4 {[%clk 0:00:34]} 38. Nxf4 {[%clk 0:02:00.4]} 38... Bxf4 {[%clk
0:00:34.9]} 39. d5 {[%clk 0:02:00.7]} 39... g5 {[%clk 0:00:28.5]} 40. d6 {[%clk
0:02:01]} 40... Kg6 {[%clk 0:00:27.8]} 41. d7 {[%clk 0:02:00.8]} 41... Bc7
{[%clk 0:00:28.4]} 42. d8=Q {[%clk 0:01:57.1]} 42... Bxd8 {[%clk 0:00:28.8]} 43.
Nxd8 {[%clk 0:01:57]} 43... f5 {[%clk 0:00:23.6]} 44. Ne6 {[%clk 0:01:54.6]}
44... Kf6 {[%clk 0:00:16.2]} 45. Nd4 {[%clk 0:01:50.6]} 45... Ke5 {[%clk
0:00:16.4]} 46. Ne2 {[%clk 0:01:51.5]} 46... Kd5 {[%clk 0:00:11.6]} 47. Ke3
{[%clk 0:01:51.6]} 47... Ke5 {[%clk 0:00:11.6]} 48. Nc3 {[%clk 0:01:50.2]} 48...
f4+ {[%clk 0:00:11.4]} 49. Kd3 {[%clk 0:01:49]} 49... Kf5 {[%clk 0:00:11.5]} 50.
Ne4 {[%clk 0:01:32.4]} 50... g4 {[%clk 0:00:11.8]} 51. Nd6+ {[%clk 0:01:33.1]}
51... Kg5 {[%clk 0:00:09.8]} 52. Nf7+ {[%clk 0:01:33.2]} 52... Kf6 {[%clk
0:00:08.3]} 53. fxg4 {[%clk 0:01:33.5]} 53... Kxf7 {[%clk 0:00:08.3]} 54. Ke4
{[%clk 0:01:34.3]} 54... Kf6 {[%clk 0:00:08.9]} 55. Kxf4 {[%clk 0:01:34.6]}
55... Kg6 {[%clk 0:00:09.6]} 56. g5 {[%clk 0:01:35.1]} 56... Kg7 {[%clk
0:00:10.1]} 57. Kf5 {[%clk 0:01:34.9]} 57... Kf7 {[%clk 0:00:10.6]} 58. g6+
{[%clk 0:01:35.7]} 58... Kg7 {[%clk 0:00:11.3]} 59. Kg5 {[%clk 0:01:36.6]} 59...
Kg8 {[%clk 0:00:11.7]} 60. Kf6 {[%clk 0:01:37.5]} 60... Kf8 {[%clk 0:00:12.2]}
61. g7+ {[%clk 0:01:38.4]} 61... Kg8 {[%clk 0:00:12.9]} 62. Kg6 {[%clk
0:01:39.3]} 1/2-1/2

[Event "Early-Titled-Tuesday-Blitz-October-03-2023"]
[Site "Chess.com"]
[Date "2023.10.03"]
[Round "8"]
[White "JimDiGrease"]
[Black "Firouzja2003"]
[Result "0-1"]
[WhiteElo "2933"]
[BlackElo "3123"]
[TimeControl "180+1"]
[EndTime "9:29:21 PDT"]
[Termination "Firouzja2003 won by resignation"]

1. d4 {[%clk 0:03:00.9]} 1... Nf6 {[%clk 0:02:55]} 2. c4 {[%clk 0:03:01.1]} 2...
g6 {[%clk 0:02:55.1]} 3. Nc3 {[%clk 0:02:59.9]} 3... Bg7 {[%clk 0:02:54.4]} 4.
e4 {[%clk 0:02:59.8]} 4... d6 {[%clk 0:02:54.5]} 5. Nf3 {[%clk 0:03:00.4]} 5...
O-O {[%clk 0:02:54.7]} 6. Be2 {[%clk 0:03:00.6]} 6... e5 {[%clk 0:02:54.6]} 7.
O-O {[%clk 0:03:00.7]} 7... Na6 {[%clk 0:02:54.9]} 8. Be3 {[%clk 0:02:58.6]}
8... Qe7 {[%clk 0:02:54.6]} 9. Bg5 {[%clk 0:02:51.4]} 9... exd4 {[%clk
0:02:41.9]} 10. Nd5 {[%clk 0:02:49.6]} 10... Qd8 {[%clk 0:02:41.8]} 11. Nxd4
{[%clk 0:02:48.9]} 11... c6 {[%clk 0:02:37.2]} 12. Bxf6 {[%clk 0:02:47.8]} 12...
Bxf6 {[%clk 0:02:38.1]} 13. Nxf6+ {[%clk 0:02:48.7]} 13... Qxf6 {[%clk
0:02:38.5]} 14. Qd2 {[%clk 0:02:49.4]} 14... Re8 {[%clk 0:02:35.8]} 15. f3
{[%clk 0:02:48.3]} 15... Nc7 {[%clk 0:02:34.6]} 16. Rad1 {[%clk 0:02:36.6]}
16... d5 {[%clk 0:02:19.6]} 17. exd5 {[%clk 0:02:08.8]} 17... cxd5 {[%clk
0:02:20.5]} 18. c5 {[%clk 0:02:09.5]} 18... Bd7 {[%clk 0:02:05.7]} 19. Rfe1
{[%clk 0:02:05]} 19... Re7 {[%clk 0:01:54.8]} 20. Bf1 {[%clk 0:01:55.3]} 20...
Rae8 {[%clk 0:01:55.3]} 21. Rxe7 {[%clk 0:01:54.8]} 21... Rxe7 {[%clk
0:01:55.7]} 22. b4 {[%clk 0:01:38.1]} 22... a6 {[%clk 0:01:54.9]} 23. Qf2 {[%clk
0:01:19.6]} 23... h5 {[%clk 0:01:52.5]} 24. Rd2 {[%clk 0:01:08.8]} 24... Bb5
{[%clk 0:01:42.9]} 25. Bxb5 {[%clk 0:00:57]} 25... Nxb5 {[%clk 0:01:42.7]} 26.
g3 {[%clk 0:00:53.5]} 26... Na3 {[%clk 0:01:13]} 27. Nb3 {[%clk 0:00:37.1]}
27... Nc4 {[%clk 0:00:56.7]} 28. Rxd5 {[%clk 0:00:37.2]} 28... Qc3 {[%clk
0:00:57]} 29. Rd8+ {[%clk 0:00:27.8]} 29... Kh7 {[%clk 0:00:57.4]} 30. Rd1
{[%clk 0:00:13.9]} 30... Ne3 {[%clk 0:00:35.1]} 31. Rc1 {[%clk 0:00:14.4]} 31...
Qxb4 {[%clk 0:00:35.4]} 32. c6 {[%clk 0:00:11.1]} 32... bxc6 {[%clk 0:00:34.3]}
33. Rxc6 {[%clk 0:00:12]} 33... Nd1 {[%clk 0:00:32]} 34. Qd4 {[%clk 0:00:06.8]}
34... Qe1+ {[%clk 0:00:29.4]} 35. Kg2 {[%clk 0:00:06.6]} 35... Ne3+ {[%clk
0:00:28.5]} 36. Kh3 {[%clk 0:00:06.5]} 36... Qf1+ {[%clk 0:00:29]} 0-1

[Event "Early-Titled-Tuesday-Blitz-October-03-2023"]
[Site "Chess.com"]
[Date "2023.10.03"]
[Round "8"]
[White "vladgoncharov"]
[Black "AsaHoffmann"]
[Result "1-0"]
[WhiteElo "2518"]
[BlackElo "2385"]
[TimeControl "180+1"]
[EndTime "9:29:22 PDT"]
[Termination "vladgoncharov won on time"]

1. d4 {[%clk 0:03:00.9]} 1... Nf6 {[%clk 0:02:58.2]} 2. c4 {[%clk 0:03:00.6]}
2... c5 {[%clk 0:02:57.9]} 3. Nf3 {[%clk 0:02:59.3]} 3... cxd4 {[%clk
0:02:57.3]} 4. Nxd4 {[%clk 0:02:59]} 4... e5 {[%clk 0:02:57.2]} 5. Nb5 {[%clk
0:02:58.1]} 5... d5 {[%clk 0:02:53.6]} 6. cxd5 {[%clk 0:02:57.5]} 6... Bb4+
{[%clk 0:02:53.3]} 7. N5c3 {[%clk 0:02:54.8]} 7... O-O {[%clk 0:02:48.4]} 8. a3
{[%clk 0:02:51.2]} 8... Ba5 {[%clk 0:02:47.9]} 9. b4 {[%clk 0:02:49.6]} 9... Bb6
{[%clk 0:02:47.6]} 10. e3 {[%clk 0:02:49.9]} 10... Bf5 {[%clk 0:02:46.5]} 11.
Bd3 {[%clk 0:02:42.5]} 11... e4 {[%clk 0:02:45.3]} 12. Be2 {[%clk 0:02:34.2]}
12... Nbd7 {[%clk 0:02:44.8]} 13. g4 {[%clk 0:02:31.2]} 13... Bg6 {[%clk
0:02:44.1]} 14. h4 {[%clk 0:02:31.1]} 14... h6 {[%clk 0:02:29.4]} 15. g5 {[%clk
0:02:27.2]} 15... hxg5 {[%clk 0:02:22.7]} 16. hxg5 {[%clk 0:01:59]} 16... Nh7
{[%clk 0:02:22]} 17. Bb2 {[%clk 0:01:54.2]} 17... Qxg5 {[%clk 0:02:16.4]} 18.
Bh5 {[%clk 0:01:44.1]} 18... Nhf6 {[%clk 0:01:46.8]} 19. Be2 {[%clk 0:01:40.8]}
19... Rac8 {[%clk 0:01:41.1]} 20. Nd2 {[%clk 0:01:39.8]} 20... Ne5 {[%clk
0:01:33.5]} 21. Nf1 {[%clk 0:01:38.8]} 21... Rfd8 {[%clk 0:01:25.7]} 22. Ng3
{[%clk 0:01:29.6]} 22... Bxe3 {[%clk 0:01:23.1]} 23. Rg1 {[%clk 0:01:00.1]}
23... Bb6 {[%clk 0:01:17.1]} 24. Na4 {[%clk 0:00:52.7]} 24... Nd3+ {[%clk
0:01:08.6]} 25. Bxd3 {[%clk 0:00:50.6]} 25... exd3 {[%clk 0:01:08.4]} 26. Nxb6
{[%clk 0:00:50]} 26... axb6 {[%clk 0:01:07.9]} 27. Kf1 {[%clk 0:00:48.9]} 27...
Rxd5 {[%clk 0:01:01.7]} 28. Rc1 {[%clk 0:00:45.8]} 28... Rc2 {[%clk 0:00:53.7]}
29. Ne4 {[%clk 0:00:36.6]} 29... Qxg1+ {[%clk 0:00:30.8]} 30. Kxg1 {[%clk
0:00:36.2]} 30... Bxe4 {[%clk 0:00:27.7]} 31. Bxf6 {[%clk 0:00:35.6]} 31... Rxc1
{[%clk 0:00:18.2]} 32. Qxc1 {[%clk 0:00:35.6]} 32... gxf6 {[%clk 0:00:10.7]} 33.
Qd2 {[%clk 0:00:33.9]} 33... Bg6 {[%clk 0:00:07.4]} 34. Kh2 {[%clk 0:00:33.7]}
34... Re5 {[%clk 0:00:06.9]} 35. Kg3 {[%clk 0:00:33.8]} 35... Re2 {[%clk
0:00:06.7]} 36. Qd1 {[%clk 0:00:33.7]} 36... Ra2 {[%clk 0:00:01]} 37. a4 {[%clk
0:00:24.6]} 1-0

[Event "Early-Titled-Tuesday-Blitz-October-03-2023"]
[Site "Chess.com"]
[Date "2023.10.03"]
[Round "8"]
[White "JiiHart"]
[Black "rikchessmx"]
[Result "1/2-1/2"]
[WhiteElo "2194"]
[BlackElo "2330"]
[TimeControl "180+1"]
[EndTime "9:29:22 PDT"]
[Termination "Game drawn by repetition"]

1. e4 {[%clk 0:02:56.6]} 1... c5 {[%clk 0:03:00.9]} 2. c3 {[%clk 0:02:56.4]}
2... e6 {[%clk 0:03:01.8]} 3. d4 {[%clk 0:02:56.5]} 3... cxd4 {[%clk 0:03:01.9]}
4. cxd4 {[%clk 0:02:57.4]} 4... b6 {[%clk 0:03:01.7]} 5. Bd3 {[%clk 0:02:56]}
5... Bb7 {[%clk 0:03:02.2]} 6. Qe2 {[%clk 0:02:56]} 6... Nc6 {[%clk 0:03:01.6]}
7. Nf3 {[%clk 0:02:55.8]} 7... Nb4 {[%clk 0:03:01]} 8. Bc4 {[%clk 0:02:48.7]}
8... Rc8 {[%clk 0:02:59.5]} 9. Na3 {[%clk 0:02:45.7]} 9... a6 {[%clk 0:02:58]}
10. O-O {[%clk 0:02:39.2]} 10... b5 {[%clk 0:02:57.6]} 11. Bb3 {[%clk
0:02:39.2]} 11... Nf6 {[%clk 0:02:55.6]} 12. Bg5 {[%clk 0:02:36.3]} 12... Be7
{[%clk 0:02:54.8]} 13. Nd2 {[%clk 0:02:28.4]} 13... h6 {[%clk 0:02:38.3]} 14.
Bf4 {[%clk 0:02:15.7]} 14... d5 {[%clk 0:02:34.4]} 15. e5 {[%clk 0:02:08.1]}
15... Nd7 {[%clk 0:02:32.8]} 16. Rac1 {[%clk 0:02:04.8]} 16... Nc6 {[%clk
0:02:31.5]} 17. Be3 {[%clk 0:01:56.7]} 17... Bxa3 {[%clk 0:02:27.1]} 18. bxa3
{[%clk 0:01:55.9]} 18... Nb6 {[%clk 0:02:25.1]} 19. Qg4 {[%clk 0:01:49.3]} 19...
g6 {[%clk 0:02:21.7]} 20. Bc2 {[%clk 0:01:48.7]} 20... Qe7 {[%clk 0:02:20.5]}
21. Nb3 {[%clk 0:01:43.4]} 21... Nc4 {[%clk 0:02:14.3]} 22. Nc5 {[%clk
0:01:42.5]} 22... Rc7 {[%clk 0:02:03.6]} 23. a4 {[%clk 0:01:16]} 23... Bc8
{[%clk 0:01:59]} 24. axb5 {[%clk 0:01:11.6]} 24... axb5 {[%clk 0:01:59.9]} 25.
a4 {[%clk 0:01:12]} 25... Nxe3 {[%clk 0:01:57.8]} 26. fxe3 {[%clk 0:01:11]}
26... Nxe5 {[%clk 0:01:57.5]} 27. Qg3 {[%clk 0:00:41.6]} 27... Nc4 {[%clk
0:01:54.1]} 28. axb5 {[%clk 0:00:41.1]} 28... Rxc5 {[%clk 0:01:45.2]} 29. dxc5
{[%clk 0:00:38.5]} 29... Qxc5 {[%clk 0:01:45.5]} 30. Bxg6 {[%clk 0:00:34.4]}
30... fxg6 {[%clk 0:01:41.8]} 31. Qxg6+ {[%clk 0:00:33.4]} 31... Ke7 {[%clk
0:01:28.6]} 32. Qg7+ {[%clk 0:00:33.1]} 32... Kd6 {[%clk 0:01:28.7]} 33. Qxh8
{[%clk 0:00:33.4]} 33... Qxe3+ {[%clk 0:01:28.7]} 34. Kh1 {[%clk 0:00:33.5]}
34... Bd7 {[%clk 0:01:26.5]} 35. Qf8+ {[%clk 0:00:30.8]} 35... Kc7 {[%clk
0:01:26.6]} 36. b6+ {[%clk 0:00:19.7]} 36... Qxb6 {[%clk 0:01:18.9]} 37. Rb1
{[%clk 0:00:17.9]} 37... Qa7 {[%clk 0:01:16.5]} 38. Rf7 {[%clk 0:00:14.4]} 38...
Kc6 {[%clk 0:01:01.4]} 39. h3 {[%clk 0:00:13]} 39... h5 {[%clk 0:01:00.6]} 40.
Qd8 {[%clk 0:00:09.5]} 40... Nd6 {[%clk 0:00:56.1]} 41. Rg7 {[%clk 0:00:08.7]}
41... Qc5 {[%clk 0:00:54.3]} 42. Qa8+ {[%clk 0:00:04.9]} 42... Kc7 {[%clk
0:00:52.5]} 43. Rg8 {[%clk 0:00:04.8]} 43... Nc8 {[%clk 0:00:50.1]} 44. Rb8
{[%clk 0:00:02.8]} 44... Qc1+ {[%clk 0:00:48.2]} 45. Kh2 {[%clk 0:00:03.3]}
45... Qf4+ {[%clk 0:00:49.1]} 46. Kh1 {[%clk 0:00:03.8]} 46... Qc1+ {[%clk
0:00:49]} 47. Kh2 {[%clk 0:00:04.3]} 47... Qf4+ {[%clk 0:00:49.6]} 48. Kh1
{[%clk 0:00:04.8]} 48... Qc1+ {[%clk 0:00:49.5]} 1/2-1/2

[Event "Early-Titled-Tuesday-Blitz-October-03-2023"]
[Site "Chess.com"]
[Date "2023.10.03"]
[Round "8"]
[White "demondom"]
[Black "APOKALIPSA13"]
[Result "0-1"]
[WhiteElo "2059"]
[BlackElo "2159"]
[TimeControl "180+1"]
[EndTime "9:29:22 PDT"]
[Termination "APOKALIPSA13 won by resignation"]

1. d4 {[%clk 0:03:00.9]} 1... e5 {[%clk 0:02:58.2]} 2. dxe5 {[%clk 0:03:00.6]}
2... Nc6 {[%clk 0:02:58.5]} 3. Nf3 {[%clk 0:03:00.5]} 3... Qe7 {[%clk
0:02:58.7]} 4. Bf4 {[%clk 0:03:00.4]} 4... Qb4+ {[%clk 0:02:58.3]} 5. Bd2 {[%clk
0:03:00.6]} 5... Qxb2 {[%clk 0:02:58.5]} 6. Nc3 {[%clk 0:02:59.7]} 6... Bb4
{[%clk 0:02:58.4]} 7. Rb1 {[%clk 0:02:58.1]} 7... Qxc3 {[%clk 0:02:58.6]} 8.
Bxc3 {[%clk 0:02:57.1]} 8... Bxc3+ {[%clk 0:02:59.5]} 9. Nd2 {[%clk 0:02:57.1]}
9... Bxe5 {[%clk 0:02:59.6]} 10. e3 {[%clk 0:02:54.6]} 10... Nf6 {[%clk
0:02:59.1]} 11. Bd3 {[%clk 0:02:54.6]} 11... O-O {[%clk 0:02:59.1]} 12. O-O
{[%clk 0:02:54.4]} 12... d5 {[%clk 0:02:59.4]} 13. h3 {[%clk 0:02:53]} 13... h6
{[%clk 0:02:58.5]} 14. Nf3 {[%clk 0:02:52.8]} 14... Bc3 {[%clk 0:02:56.8]} 15.
Rb3 {[%clk 0:02:51.8]} 15... Ba5 {[%clk 0:02:56.9]} 16. Nd4 {[%clk 0:02:44.4]}
16... Ne5 {[%clk 0:02:55.8]} 17. Nf5 {[%clk 0:02:36.3]} 17... c5 {[%clk
0:02:53.1]} 18. Rb5 {[%clk 0:02:33.2]} 18... Bb6 {[%clk 0:02:51.2]} 19. c3
{[%clk 0:02:29.4]} 19... Nxd3 {[%clk 0:02:30.4]} 20. Qxd3 {[%clk 0:02:28.3]}
20... Bd7 {[%clk 0:02:21.1]} 21. Rb2 {[%clk 0:02:26.4]} 21... c4 {[%clk
0:02:06.4]} 22. Qc2 {[%clk 0:02:25.4]} 22... Rab8 {[%clk 0:01:56.8]} 23. Rd1
{[%clk 0:02:24.4]} 23... Rfe8 {[%clk 0:01:54.4]} 24. Nd4 {[%clk 0:02:04]} 24...
Bc5 {[%clk 0:01:49.6]} 25. a4 {[%clk 0:01:59.3]} 25... a6 {[%clk 0:01:46.2]} 26.
Rdb1 {[%clk 0:01:58.3]} 26... Bc8 {[%clk 0:01:41.4]} 27. a5 {[%clk 0:01:56.6]}
27... Ne4 {[%clk 0:01:37.9]} 28. Ne2 {[%clk 0:01:30]} 28... Re7 {[%clk
0:01:30.9]} 29. Nf4 {[%clk 0:01:20.7]} 29... Nf6 {[%clk 0:01:26.7]} 30. Rd1
{[%clk 0:01:16]} 30... Rxe3 {[%clk 0:01:22.3]} 31. fxe3 {[%clk 0:01:10.7]} 31...
Bxe3+ {[%clk 0:01:23.2]} 32. Kh1 {[%clk 0:01:10.6]} 32... Bxf4 {[%clk
0:01:23.3]} 33. Rb6 {[%clk 0:01:06.8]} 33... Ne4 {[%clk 0:01:13.5]} 34. Rxd5
{[%clk 0:00:55.2]} 34... Ng3+ {[%clk 0:01:11.3]} 35. Kg1 {[%clk 0:00:53.7]}
35... Be6 {[%clk 0:01:08.9]} 36. Rd4 {[%clk 0:00:46.6]} 36... Be3+ {[%clk
0:01:06.3]} 37. Kh2 {[%clk 0:00:46.7]} 37... Nf1+ {[%clk 0:01:03.4]} 38. Kh1
{[%clk 0:00:45.8]} 38... Re8 {[%clk 0:00:43.8]} 39. Rd1 {[%clk 0:00:34.6]} 39...
Bf5 {[%clk 0:00:39.2]} 40. Qe2 {[%clk 0:00:19.6]} 40... Ng3+ {[%clk 0:00:38]}
41. Kh2 {[%clk 0:00:19]} 41... Nxe2 {[%clk 0:00:38.1]} 42. Re1 {[%clk 0:00:17]}
42... Bxb6 {[%clk 0:00:37.6]} 43. axb6 {[%clk 0:00:15.5]} 43... Bd3 {[%clk
0:00:36.7]} 0-1

[Event "Early-Titled-Tuesday-Blitz-October-03-2023"]
[Site "Chess.com"]
[Date "2023.10.03"]
[Round "8"]
[White "viktorskliarov"]
[Black "Mops_2004"]
[Result "0-1"]
[WhiteElo "2659"]
[BlackElo "2802"]
[TimeControl "180+1"]
[EndTime "9:29:25 PDT"]
[Termination "Mops_2004 won by resignation"]

1. e4 {[%clk 0:03:00.9]} 1... g6 {[%clk 0:03:00.2]} 2. d4 {[%clk 0:03:00.8]}
2... Bg7 {[%clk 0:03:00.7]} 3. Nc3 {[%clk 0:03:01.3]} 3... d6 {[%clk 0:03:01.3]}
4. Be3 {[%clk 0:03:01.3]} 4... a6 {[%clk 0:03:01.4]} 5. f3 {[%clk 0:03:01.2]}
5... b5 {[%clk 0:03:01.6]} 6. Qd2 {[%clk 0:03:01.8]} 6... Nd7 {[%clk 0:03:01.4]}
7. g4 {[%clk 0:03:02.5]} 7... Bb7 {[%clk 0:02:59.4]} 8. h4 {[%clk 0:03:02.6]}
8... h6 {[%clk 0:02:59.4]} 9. O-O-O {[%clk 0:03:01.2]} 9... e6 {[%clk 0:02:59]}
10. Kb1 {[%clk 0:03:01.1]} 10... Ne7 {[%clk 0:02:58.8]} 11. Nh3 {[%clk
0:02:59.2]} 11... c5 {[%clk 0:02:52]} 12. Ne2 {[%clk 0:02:24]} 12... Qc7 {[%clk
0:02:37.7]} 13. c3 {[%clk 0:02:21.3]} 13... a5 {[%clk 0:02:08.4]} 14. Bf4 {[%clk
0:01:53.1]} 14... e5 {[%clk 0:02:00.8]} 15. Bg3 {[%clk 0:01:29.1]} 15... Nb6
{[%clk 0:01:55.5]} 16. Bg2 {[%clk 0:01:23]} 16... b4 {[%clk 0:01:43.3]} 17. dxc5
{[%clk 0:01:04.8]} 17... dxc5 {[%clk 0:01:43.2]} 18. Qd6 {[%clk 0:00:58.6]}
18... Qxd6 {[%clk 0:01:43.3]} 19. Rxd6 {[%clk 0:00:57.8]} 19... Nc4 {[%clk
0:01:44]} 20. Rd3 {[%clk 0:00:49.9]} 20... Ba6 {[%clk 0:01:43.9]} 21. Rhd1
{[%clk 0:00:44.1]} 21... O-O {[%clk 0:01:42.3]} 22. Rd7 {[%clk 0:00:25.3]} 22...
Nc6 {[%clk 0:01:26.6]} 23. Bf2 {[%clk 0:00:24.8]} 23... bxc3 {[%clk 0:00:51.1]}
24. Nxc3 {[%clk 0:00:24.3]} 24... Nd4 {[%clk 0:00:50.9]} 25. Nd5 {[%clk
0:00:15.2]} 25... Rfb8 {[%clk 0:00:39.1]} 26. b3 {[%clk 0:00:15.2]} 26... a4
{[%clk 0:00:35.1]} 27. Bxd4 {[%clk 0:00:13.2]} 27... exd4 {[%clk 0:00:28]} 28.
Kc2 {[%clk 0:00:10]} 28... axb3+ {[%clk 0:00:27.5]} 29. axb3 {[%clk 0:00:10.1]}
29... Na3+ {[%clk 0:00:21.7]} 30. Kd2 {[%clk 0:00:10.2]} 30... Rxb3 {[%clk
0:00:20.9]} 31. Bf1 {[%clk 0:00:07]} 31... Rb2+ {[%clk 0:00:17.6]} 32. Ke1
{[%clk 0:00:07.5]} 32... Nc2+ {[%clk 0:00:16.2]} 33. Kf2 {[%clk 0:00:08]} 33...
Ne3+ {[%clk 0:00:16.2]} 34. Kg3 {[%clk 0:00:08.3]} 34... Nxf1+ {[%clk
0:00:15.3]} 0-1